bitfinex-derivatives/quotes_BTCF0:USTF0_20241117
["timestamp","ask_amount","ask_price","bid_price","bid_amount"]
[1731807455060,0.055187,90560.0,90540.0,0.62779021]
[1731807455258,0.055187,90560.0,90555.0,0.055189]
[1731807456055,0.055187,90560.0,90556.0,0.11042707]
[1731807456362,0.3608,90566.0,90551.0,0.22978213]
[1731807456363,0.055188,90559.0,90551.0,0.22978213]
[1731807456857,0.055188,90559.0,90552.0,0.3078092]
[1731807457054,0.055188,90559.0,90552.0,0.11042707]
[1731807457256,0.055188,90559.0,90552.0,0.3078092]
[1731807457459,0.055189,90556.0,90552.0,0.11042707]
[1731807457762,0.055189,90556.0,90552.0,0.3078092]
[1731807458353,0.055189,90556.0,90553.0,0.19738213]
[1731807458664,0.055189,90556.0,90552.0,0.19738213]
[1731807458851,0.3608,90566.0,90552.0,0.19738213]
[1731807459053,0.3608,90566.0,90551.0,0.22978213]
[1731807459054,0.055191,90553.0,90551.0,0.22978213]
[1731807459464,0.055191,90553.0,90552.0,0.19738213]
[1731807459663,0.055191,90553.0,90552.0,0.30781286]
[1731807459865,0.055193,90549.0,90547.0,0.10728]
[1731807461965,0.055194,90548.0,90543.0,0.25257913]
[1731807462262,0.055194,90548.0,90544.0,0.16563466]
[1731807462463,0.0051,90559.0,90544.0,0.30782079]
[1731807462664,0.055188,90558.0,90551.0,0.055192]
[1731807462861,0.0051,90572.0,90551.0,0.055192]
[1731807463162,0.055184,90565.0,90548.0,0.19738213]
[1731807463364,0.0051,90572.0,90539.0,0.43756175]
[1731807463365,0.05748435,90567.0,90547.0,0.19738213]
[1731807463660,0.05748435,90567.0,90549.0,0.19738213]
[1731807463963,0.055193,90550.0,90548.0,0.25257613]
[1731807464264,0.055193,90550.0,90549.0,0.19738213]
[1731807464467,0.055193,90550.0,90549.0,0.11042829]
[1731807465301,0.055193,90550.0,90549.0,0.30839897]
[1731807465504,0.055193,90550.0,90549.0,0.30845708]
[1731807465692,0.055193,90550.0,90546.0,0.26418131]
[1731807465877,0.055189,90557.0,90545.0,0.26418131]
[1731807466087,0.055192,90551.0,90550.0,0.19802706]
[1731807466294,0.055192,90551.0,90550.0,0.1980242]
[1731807466481,0.055192,90551.0,90546.0,0.31937631]
[1731807466685,0.055192,90551.0,90547.0,0.26418131]
[1731807466885,0.055192,90551.0,90547.0,0.37461814]
[1731807467094,0.055196,90545.0,90544.0,0.19805605]
[1731807467289,0.055198,90541.0,90540.0,0.00148]
[1731807467512,0.415998,90541.0,90540.0,0.00148]
[1731807467993,0.055201,90537.0,90536.0,0.00010468]
[1731807472092,0.055201,90537.0,90536.0,0.19816073]
[1731807473000,0.055201,90537.0,90536.0,0.00010468]
[1731807473185,0.055201,90537.0,90536.0,0.19816073]
[1731807473396,0.055201,90537.0,90536.0,0.00010468]
[1731807473592,0.055201,90537.0,90536.0,0.19815412]
[1731807473904,0.055201,90537.0,90536.0,0.00010468]
[1731807474788,0.386561,90537.0,90536.0,0.00010468]
[1731807477681,0.386561,90537.0,90522.0,0.19804834]
[1731807477682,0.055206,90528.0,90522.0,0.19804834]
[1731807477883,0.416009,90523.0,90514.0,0.19804834]
[1731807478081,0.055216,90512.0,90510.0,0.00103]
[1731807478679,0.055216,90512.0,90511.0,7.822e-05]
[1731807487391,0.16170087,90512.0,90511.0,7.822e-05]
[1731807487892,0.16170087,90512.0,90511.0,2.2e-07]
[1731807488399,0.59962574,90512.0,90511.0,2.2e-07]
[1731807488778,0.89962574,90512.0,90511.0,2.2e-07]
[1731807489184,0.79314087,90512.0,90511.0,2.2e-07]
[1731807489384,0.055233,90485.0,90483.0,0.0323]
[1731807489787,0.055233,90485.0,90484.0,0.11048319]
[1731807490786,0.056233,90485.0,90484.0,0.11048319]
[1731807491185,0.055233,90485.0,90484.0,0.11048319]
[1731807491390,0.056233,90485.0,90484.0,0.12148319]
[1731807492092,0.417033,90485.0,90484.0,0.011]
[1731807493899,0.055238,90477.0,90475.0,0.0331]
[1731807494401,0.055238,90477.0,90476.0,0.11051616]
[1731807494703,0.3608,90485.0,90476.0,0.47131616]
[1731807494891,0.06033,90489.0,90484.0,0.055233]
[1731807495200,0.05523,90489.0,90484.0,0.055233]
[1731807495395,0.05523,90489.0,90484.0,0.416033]
[1731807495589,0.0051,90496.0,90485.0,0.11052593]
[1731807495590,0.055227,90494.0,90485.0,0.11052593]
[1731807496090,0.055228,90492.0,90485.0,0.11052593]
[1731807496301,0.055228,90492.0,90486.0,0.055232]
[1731807496505,0.055224,90499.0,90492.0,0.055228]
[1731807496798,0.055224,90499.0,90493.0,0.064]
[1731807497003,0.10648487,90504.0,90493.0,0.17451005]
[1731807497203,0.055227,90495.0,90493.0,0.17451005]
[1731807497393,0.055227,90495.0,90494.0,0.3608]
[1731807498096,0.055227,90495.0,90494.0,0.47130395]
[1731807499391,0.00165809,90505.0,90494.0,0.47130395]
[1731807499392,0.055223,90502.0,90494.0,0.47130395]
[1731807499795,0.055223,90501.0,90494.0,0.47130395]
[1731807500002,0.00165809,90505.0,90502.0,0.055222]
[1731807500197,0.00165809,90505.0,90503.0,0.0315]
[1731807500401,0.0051,90517.0,90504.0,0.3608]
[1731807500611,0.00011603,90519.0,90512.0,0.3608]
[1731807500809,0.00011603,90519.0,90513.0,0.13386]
[1731807501106,0.055215,90514.0,90513.0,0.10316]
[1731807501487,0.055215,90514.0,90513.0,0.21363831]
[1731807502895,0.055215,90514.0,90513.0,0.11047831]
[1731807503095,0.055215,90514.0,90512.0,0.001]
[1731807503301,0.055215,90514.0,90503.0,0.0315]
[1731807503302,0.055221,90504.0,90503.0,0.0315]
[1731807503605,0.16170587,90504.0,90503.0,0.0315]
[1731807503902,0.16170587,90504.0,90488.0,0.33028175]
[1731807503903,0.055227,90494.0,90487.0,0.055231]
[1731807504210,0.055227,90494.0,90493.0,0.16656]
[1731807504509,0.055227,90494.0,90493.0,0.27705296]
[1731807505202,0.055227,90494.0,90493.0,0.0326]
[1731807506004,0.055223,90500.0,90494.0,0.055227]
[1731807506203,0.055225,90498.0,90494.0,0.055227]
[1731807506394,0.055225,90498.0,90495.0,0.3608]
[1731807506595,0.055225,90498.0,90495.0,0.47130517]
[1731807507500,0.055225,90498.0,90495.0,0.11050517]
[1731807507900,0.055226,90497.0,90495.0,0.30955351]
[1731807508107,0.055226,90497.0,90495.0,0.001]
[1731807509000,0.13104866,90496.0,90495.0,0.001]
[1731807509310,0.055226,90497.0,90481.0,0.0307]
[1731807509511,0.055226,90496.0,90495.0,0.001]
[1731807509727,0.055239,90474.0,90471.0,0.19825727]
[1731807509894,0.055239,90474.0,90472.0,0.05524]
[1731807510099,0.055239,90474.0,90472.0,0.16574273]
[1731807510296,0.0051,90486.0,90485.0,0.055232]
[1731807510506,0.0051,90499.0,90497.0,0.055225]
[1731807510702,0.0051,90499.0,90486.0,0.055232]
[1731807510703,0.13103354,90503.0,90498.0,0.3915]
[1731807510902,0.055219,90508.0,90503.0,0.055221]
[1731807511111,0.05522,90506.0,90498.0,0.49466]
[1731807511304,0.11324275,90516.0,90499.0,0.11049967]
[1731807511305,0.055224,90500.0,90499.0,0.11049967]
[1731807511504,0.055224,90500.0,90498.0,0.0307]
[1731807511697,0.055224,90500.0,90498.0,0.03218]
[1731807511900,0.055224,90500.0,90499.0,0.30879037]
[1731807512104,0.055224,90500.0,90499.0,0.30876042]
[1731807512713,0.055224,90500.0,90499.0,0.11049967]
[1731807514106,0.055224,90500.0,90499.0,0.30876305]
[1731807515812,0.055224,90500.0,90499.0,0.30877043]
[1731807516117,0.055224,90500.0,90499.0,0.11049967]
[1731807517005,0.055224,90500.0,90499.0,0.30877703]
[1731807517405,0.055224,90500.0,90499.0,0.11049967]
[1731807517907,0.10648487,90508.0,90499.0,0.11049967]
[1731807518110,0.3608,90511.0,90506.0,0.19828171]
[1731807518313,0.3608,90511.0,90499.0,0.47129967]
[1731807518314,0.055217,90510.0,90508.0,0.19828171]
[1731807518500,0.055217,90510.0,90507.0,0.055219]
[1731807519012,0.00165788,90516.0,90509.0,0.3608]
[1731807519212,0.00165788,90516.0,90514.0,0.055214]
[1731807520036,0.0051,90528.0,90518.0,0.055212]
[1731807520313,0.0051,90528.0,90518.0,0.94562784]
[1731807520515,0.0051,90528.0,90518.0,0.94554919]
[1731807520707,0.0051,90528.0,90518.0,0.85793092]
[1731807521508,0.0051,90528.0,90518.0,0.52649092]
[1731807521710,0.0051,90528.0,90518.0,0.85793092]
[1731807522113,0.0051,90528.0,90518.0,0.52649092]
[1731807522312,0.0051,90528.0,90518.0,0.72445284]
[1731807523400,0.0051,90528.0,90518.0,0.52649092]
[1731807524524,0.0051,90528.0,90518.0,0.66921916]
[1731807524819,0.055211,90520.0,90518.0,0.10244]
[1731807526522,0.0317,90526.0,90518.0,0.10244]
[1731807526827,0.0051,90528.0,90518.0,0.21291465]
[1731807527013,0.0051,90528.0,90518.0,0.24551465]
[1731807527609,0.060307,90528.0,90518.0,0.24551465]
[1731807527915,0.055207,90527.0,90518.0,0.24551465]
[1731807528319,0.0051,90528.0,90518.0,0.24551465]
[1731807528527,0.0051,90528.0,90518.0,0.89757119]
[1731807528827,0.0051,90528.0,90518.0,0.56728055]
[1731807529416,0.0051,90528.0,90518.0,0.6215507]
[1731807531518,0.0051,90528.0,90518.0,0.6294882]
[1731807531723,0.0051,90528.0,90518.0,0.47277805]
[1731807531928,0.11158487,90528.0,90518.0,0.57517805]
[1731807532107,0.11158487,90528.0,90518.0,0.24547465]
[1731807532108,0.05521,90522.0,90518.0,0.24547465]
[1731807532308,0.055208,90526.0,90518.0,0.24547465]
[1731807532520,0.055208,90526.0,90518.0,0.50918302]
[1731807532708,0.055208,90526.0,90518.0,0.24547465]
[1731807532919,0.055211,90520.0,90518.0,0.21287465]
[1731807533914,0.0051,90528.0,90518.0,0.21287465]
[1731807534126,0.10648487,90527.0,90518.0,0.30827794]
[1731807534313,0.05532803,90519.0,90515.0,0.055214]
[1731807534516,0.00011603,90519.0,90518.0,0.47127465]
[1731807534915,0.00011603,90519.0,90518.0,0.3608]
[1731807535128,0.00011603,90519.0,90518.0,0.11047465]
[1731807536009,0.00011603,90519.0,90515.0,0.055214]
[1731807536208,0.00011603,90519.0,90516.0,0.11047465]
[1731807536618,0.055213,90518.0,90516.0,0.11047465]
[1731807537023,0.055213,90518.0,90514.0,0.3608]
[1731807537317,0.00011603,90519.0,90515.0,0.11047648]
[1731807537626,0.00011603,90519.0,90517.0,0.055212]
[1731807538219,0.00011603,90519.0,90518.0,0.11047526]
[1731807539031,0.00011603,90519.0,90518.0,0.14087526]
[1731807539432,0.00011603,90519.0,90518.0,0.33867855]
[1731807539642,0.00011603,90519.0,90518.0,0.14087526]
[1731807540330,0.00011603,90519.0,90518.0,0.40458728]
[1731807540623,0.00011603,90519.0,90518.0,0.14087526]
[1731807541423,0.00011603,90519.0,90518.0,0.46465232]
[1731807541629,0.00011603,90519.0,90518.0,0.86070785]
[1731807541931,0.00011603,90519.0,90518.0,0.86070852]
[1731807542136,0.00011603,90519.0,90518.0,0.86071074]
[1731807542427,0.00011603,90519.0,90518.0,0.46465232]
[1731807542733,0.00011603,90519.0,90518.0,0.46402553]
[1731807544432,0.00011603,90519.0,90518.0,0.84944734]
[1731807544819,0.00011603,90519.0,90518.0,0.82991558]
[1731807545026,0.00011603,90519.0,90518.0,0.43362553]
[1731807545326,0.00011603,90519.0,90518.0,0.82991558]
[1731807546018,0.00011603,90519.0,90518.0,0.83054473]
[1731807546218,0.00011603,90519.0,90518.0,0.43425468]
[1731807547428,0.00011603,90519.0,90518.0,0.8187312]
[1731807547739,0.00011603,90519.0,90518.0,0.83107612]
[1731807547929,0.00011603,90519.0,90518.0,0.48946668]
[1731807548925,0.00011603,90519.0,90518.0,0.43425468]
[1731807549326,0.00011603,90519.0,90518.0,0.83132103]
[1731807549529,0.00011603,90519.0,90518.0,0.43425468]
[1731807549732,0.00011603,90519.0,90518.0,0.48946668]
[1731807550232,0.00011603,90519.0,90518.0,0.87236925]
[1731807550441,0.00011603,90519.0,90518.0,0.87234676]
[1731807550623,0.00011603,90519.0,90518.0,0.81713476]
[1731807550940,0.00011603,90519.0,90518.0,0.43286205]
[1731807551344,0.00011603,90519.0,90518.0,0.48807405]
[1731807551527,0.00011603,90519.0,90518.0,0.87259917]
[1731807551840,0.13110129,90549.0,90518.0,0.90520567]
[1731807552139,0.0051,90532.0,90531.0,0.055204]
[1731807552325,0.120195,90547.0,90536.0,0.055201]
[1731807552326,0.0051,90543.0,90536.0,0.055201]
[1731807552530,0.0051,90543.0,90536.0,0.73838779]
[1731807552838,0.055199,90541.0,90536.0,0.48806244]
[1731807553031,0.055198,90541.0,90540.0,0.26462155]
[1731807553339,0.065,90547.0,90540.0,0.3608]
[1731807553535,0.065,90547.0,90545.0,0.26461551]
[1731807553739,0.065,90547.0,90544.0,0.055196]
[1731807553935,0.065,90547.0,90545.0,0.055196]
[1731807554128,0.065,90547.0,90545.0,0.4964143]
[1731807554438,0.065,90547.0,90545.0,0.055196]
[1731807554627,0.065,90547.0,90546.0,0.11044171]
[1731807555350,0.065,90547.0,90542.0,0.33077659]
[1731807555538,0.065,90547.0,90545.0,0.26445967]
[1731807555734,0.120195,90547.0,90546.0,0.26445967]
[1731807555936,0.120195,90547.0,90542.0,0.33077659]
[1731807556447,0.120195,90547.0,90540.0,0.415999]
[1731807556448,0.120195,90547.0,90546.0,0.11044049]
[1731807556634,0.065,90547.0,90540.0,0.3608]
[1731807556948,0.13110129,90546.0,90541.0,0.11044049]
[1731807557130,0.055198,90542.0,90541.0,0.11044049]
[1731807557330,0.055202,90536.0,90530.0,0.19832406]
[1731807557634,0.055202,90536.0,90534.0,0.11044415]
[1731807557936,0.055202,90536.0,90530.0,0.25352906]
[1731807557937,0.055202,90536.0,90531.0,0.29904406]
[1731807558144,0.055202,90536.0,90532.0,0.25352806]
[1731807558341,0.055203,90534.0,90533.0,0.19832406]
[1731807558541,0.055203,90534.0,90532.0,0.19832406]
[1731807558948,0.055203,90534.0,90532.0,0.11045452]
[1731807559648,0.13110129,90540.0,90527.0,0.19833499]
[1731807559845,0.055207,90526.0,90525.0,0.10072]
[1731807560233,0.49190129,90533.0,90525.0,0.11045635]
[1731807560234,0.13110129,90531.0,90525.0,0.11045635]
[1731807560433,0.055207,90526.0,90525.0,0.11045635]
[1731807560643,0.055207,90526.0,90518.0,0.0001065]
[1731807560644,0.13110129,90526.0,90518.0,0.0001065]
[1731807560839,0.05521,90522.0,90518.0,0.0001065]
[1731807561050,0.05521,90522.0,90519.0,0.11045635]
[1731807562946,0.0312,90525.0,90520.0,0.055211]
[1731807563247,0.0312,90525.0,90518.0,0.0001065]
[1731807563952,0.055212,90519.0,90518.0,0.0001065]
[1731807564139,0.055212,90519.0,90509.0,0.19833499]
[1731807564140,0.055217,90511.0,90509.0,0.19833499]
[1731807564344,0.055218,90509.0,90507.0,0.00102]
[1731807564540,0.055218,90509.0,90507.0,0.26545208]
[1731807564739,0.055218,90509.0,90508.0,0.26443208]
[1731807565457,0.055218,90509.0,90507.0,0.00102]
[1731807565750,0.055218,90509.0,90507.0,0.26545208]
[1731807565951,0.055218,90509.0,90507.0,0.00102]
[1731807566550,0.055218,90509.0,90507.0,0.26545208]
[1731807566855,0.055218,90509.0,90507.0,0.00102]
[1731807568560,0.416018,90509.0,90507.0,0.1991654]
[1731807568850,0.416018,90509.0,90507.0,0.00102]
[1731807572857,0.416018,90509.0,90489.0,0.36519208]
[1731807572858,0.33148,90508.0,90495.0,0.1981454]
[1731807573158,0.055235,90480.0,90479.0,0.1981454]
[1731807573348,0.0051,90489.0,90475.0,0.1981454]
[1731807573551,0.055237,90478.0,90477.0,0.11048747]
[1731807573751,0.055239,90475.0,90473.0,0.1981454]
[1731807574259,0.05524,90473.0,90470.0,0.2989054]
[1731807574558,0.05524,90473.0,90470.0,0.1981454]
[1731807574757,0.055242,90470.0,90468.0,0.1981454]
[1731807575061,0.055242,90470.0,90463.0,0.0963]
[1731807575062,0.055242,90470.0,90464.0,0.1981454]
[1731807575260,0.055242,90470.0,90469.0,0.1105351]
[1731807575648,0.055242,90470.0,90463.0,0.0639]
[1731807575846,0.055242,90470.0,90464.0,0.1105351]
[1731807576352,0.056242,90470.0,90464.0,0.1195351]
[1731807576955,0.001,90470.0,90464.0,0.1195351]
[1731807577151,0.055243,90468.0,90464.0,0.1195351]
[1731807577351,0.001,90470.0,90465.0,0.10424]
[1731807577352,0.054444,90466.0,90465.0,0.10424]
[1731807577946,0.054444,90466.0,90465.0,0.21477754]
[1731807580958,0.054444,90466.0,90465.0,0.11053754]
[1731807581353,0.054444,90466.0,90463.0,0.13574]
[1731807581354,0.055245,90464.0,90463.0,0.13574]
[1731807581847,0.05525,90456.0,90455.0,0.0324]
[1731807582052,0.05525,90456.0,90455.0,0.13664]
[1731807582260,0.05525,90456.0,90455.0,0.03245175]
[1731807582450,0.05525,90456.0,90455.0,0.21484334]
[1731807582972,0.05525,90456.0,90455.0,0.11060334]
[1731807583450,0.05525,90456.0,90455.0,5.175e-05]
[1731807584269,0.05525,90456.0,90455.0,7.5e-07]
[1731807584270,0.85517487,90456.0,90455.0,7.5e-07]
[1731807584649,0.055256,90446.0,90427.0,0.0313]
[1731807584867,0.055267,90428.0,90427.0,0.0313]
[1731807585257,0.055269,90425.0,90424.0,0.36236]
[1731807585562,0.055269,90425.0,90424.0,0.3608]
[1731807590364,0.055271,90422.0,90418.0,0.055273]
[1731807590564,0.055271,90422.0,90411.0,0.13688]
[1731807590565,0.055273,90418.0,90399.0,0.5589454]
[1731807590748,0.10648487,90419.0,90399.0,0.3608]
[1731807590949,0.10648487,90419.0,90401.0,0.032]
[1731807591152,0.10648487,90419.0,90401.0,0.14258949]
[1731807591153,0.055283,90403.0,90401.0,0.14258949]
[1731807591659,0.055283,90403.0,90401.0,0.24686949]
[1731807592056,0.20481865,90422.0,90402.0,0.10648487]
[1731807592251,0.20481865,90422.0,90401.0,0.14258949]
[1731807592252,0.00165952,90459.0,90421.0,0.82808487]
[1731807592461,0.00165952,90459.0,90443.0,0.3608]
[1731807592753,0.00165952,90459.0,90452.0,0.3608]
[1731807592754,0.055251,90454.0,90452.0,0.3608]
[1731807593155,0.055251,90454.0,90453.0,0.11061702]
[1731807593361,0.055251,90454.0,90453.0,0.11072962]
[1731807594870,0.055251,90454.0,90453.0,0.0001126]
[1731807596876,0.416051,90454.0,90453.0,0.0001126]
[1731807597253,0.747731,90454.0,90453.0,1.297e-05]
[1731807597453,0.386931,90454.0,90453.0,1.297e-05]
[1731807598755,0.747731,90454.0,90453.0,1.297e-05]
[1731807599259,1.15421587,90454.0,90453.0,1.297e-05]
[1731807599569,0.055265,90431.0,90430.0,0.3608]
[1731807600963,0.05527,90424.0,90423.0,0.0314]
[1731807605356,0.055271,90422.0,90421.0,0.00165882]
[1731807606958,0.055271,90422.0,90401.0,0.055283]
[1731807606959,0.055271,90422.0,90397.0,0.0311]
[1731807607174,0.055284,90401.0,90397.0,0.0634]
[1731807608475,0.055284,90401.0,90397.0,0.0323]
[1731807608857,0.055286,90398.0,90397.0,0.00828906]
[1731807610871,0.09714,90399.0,90397.0,0.00828906]
[1731807611067,0.09714,90399.0,90397.0,0.11891158]
[1731807614173,0.07338,90402.0,90398.0,0.69268]
[1731807614174,0.00774,90402.0,90398.0,0.69268]
[1731807614374,0.0052,90410.0,90398.0,0.69268]
[1731807614581,0.0052,90410.0,90406.0,0.3608]
[1731807614766,0.00165987,90425.0,90407.0,0.10928]
[1731807614767,0.0052,90417.0,90407.0,0.10928]
[1731807614965,0.00582,90411.0,90407.0,0.10928]
[1731807615168,0.05528,90408.0,90406.0,0.3608]
[1731807615363,0.00582,90411.0,90396.0,0.3608]
[1731807615364,0.055283,90402.0,90396.0,0.3608]
[1731807615562,0.055284,90400.0,90396.0,0.3608]
[1731807615767,0.055284,90400.0,90399.0,0.11060845]
[1731807616093,0.055286,90397.0,90396.0,0.3608]
[1731807616767,0.055286,90397.0,90396.0,0.47142008]
[1731807617676,0.064126,90397.0,90396.0,0.47142008]
[1731807618871,0.064126,90397.0,90373.0,0.26443208]
[1731807618872,0.055297,90380.0,90373.0,0.26443208]
[1731807619069,0.055297,90380.0,90371.0,0.1981454]
[1731807619070,0.055297,90380.0,90375.0,0.3608]
[1731807619484,0.055297,90380.0,90376.0,0.11064823]
[1731807620272,0.0052,90386.0,90376.0,0.11064823]
[1731807620676,0.055298,90377.0,90376.0,0.11064823]
[1731807620879,0.055301,90373.0,90351.0,0.1981454]
[1731807621080,0.055312,90354.0,90353.0,0.3608]
[1731807621769,0.055312,90355.0,90353.0,0.11066598]
[1731807622081,0.0052,90363.0,90346.0,0.1981454]
[1731807622383,0.055315,90351.0,90344.0,0.1981454]
[1731807622590,0.05531,90359.0,90350.0,0.10928]
[1731807622773,0.05531,90359.0,90358.0,0.3608]
[1731807622974,0.0052,90368.0,90358.0,0.3608]
[1731807623184,0.0052,90376.0,90358.0,0.3608]
[1731807623385,0.0052,90376.0,90359.0,0.11066476]
[1731807623574,0.0052,90376.0,90366.0,0.3608]
[1731807623880,0.055315,90350.0,90349.0,0.36091]
[1731807624585,0.055315,90350.0,90349.0,0.47159129]
[1731807625089,0.055311,90357.0,90349.0,0.47159129]
[1731807625285,0.055312,90356.0,90349.0,0.47159129]
[1731807625882,0.055313,90354.0,90349.0,0.36091]
[1731807626186,0.0052,90359.0,90350.0,0.11068129]
[1731807626385,0.055314,90351.0,90350.0,0.11068129]
[1731807626976,0.06798261,90351.0,90350.0,0.11068129]
[1731807627177,0.055314,90351.0,90350.0,0.11068129]
[1731807627372,0.055314,90351.0,90349.0,0.36091]
[1731807628689,0.10648487,90358.0,90341.0,0.3608]
[1731807628988,0.0052,90354.0,90341.0,0.3608]
[1731807629176,0.055317,90347.0,90341.0,0.3608]
[1731807629685,0.055317,90347.0,90342.0,0.11068374]
[1731807630488,0.0052,90354.0,90342.0,0.47148374]
[1731807630489,0.060513,90354.0,90342.0,0.47148374]
[1731807630678,0.055314,90352.0,90342.0,0.47148374]
[1731807631190,0.0052,90354.0,90342.0,0.47148374]
[1731807631191,0.055318,90345.0,90342.0,0.47148374]
[1731807631395,0.055319,90344.0,90342.0,0.47148374]
[1731807632579,0.055319,90344.0,90342.0,0.3608]
[1731807633393,0.0625,90343.0,90342.0,0.3608]
[1731807633697,0.0311,90343.0,90342.0,0.3608]
[1731807633993,0.055319,90344.0,90342.0,0.3608]
[1731807634291,0.055319,90344.0,90342.0,0.47148926]
[1731807639590,0.055319,90344.0,90342.0,0.11068926]
[1731807640392,0.055319,90344.0,90342.0,0.11168926]
[1731807640901,0.0052,90354.0,90342.0,0.11168926]
[1731807640902,0.055314,90352.0,90342.0,0.11168926]
[1731807641079,0.055314,90352.0,90351.0,0.3608]
[1731807641797,0.055314,90352.0,90351.0,0.47148436]
[1731807642101,0.055314,90352.0,90351.0,0.11068436]
[1731807642496,0.0052,90361.0,90351.0,0.055314]
[1731807642797,0.05531,90358.0,90353.0,0.10648487]
[1731807643001,0.3,90358.0,90333.0,0.19782128]
[1731807643176,0.3,90358.0,90314.0,0.0052]
[1731807643177,0.10648487,90342.0,90311.0,0.3608]
[1731807643382,0.055331,90324.0,90311.0,0.3608]
[1731807643684,0.0326,90341.0,90320.0,0.11068068]
[1731807643685,0.055333,90321.0,90320.0,0.11068068]
[1731807643891,0.055333,90321.0,90302.0,0.22108533]
[1731807643892,0.055344,90303.0,90302.0,0.05511831]
[1731807644090,0.055344,90303.0,90300.0,0.04054179]
[1731807644091,0.10036427,90303.0,90300.0,0.04054179]
[1731807644283,0.10036427,90302.0,90298.0,0.055346]
[1731807644483,0.0052,90312.0,90295.0,0.37825356]
[1731807644484,0.10036427,90301.0,90295.0,0.37825356]
[1731807644694,0.0052,90312.0,90295.0,0.37825356]
[1731807644695,0.10036427,90300.0,90295.0,0.37825356]
[1731807644908,0.055346,90300.0,90299.0,0.1107389]
[1731807645079,0.055346,90300.0,90294.0,0.28467248]
[1731807645080,0.055349,90295.0,90294.0,0.28467248]
[1731807645394,0.055349,90295.0,90270.0,0.0323]
[1731807645395,0.055356,90283.0,90282.0,0.1107389]
[1731807645576,0.21375343,90283.0,90282.0,0.1107389]
[1731807645781,0.055358,90280.0,90268.0,0.19782128]
[1731807645987,0.01697422,90269.0,90268.0,0.25318628]
[1731807646179,0.01697422,90269.0,90263.0,0.3608]
[1731807646180,0.05191256,90269.0,90263.0,0.3608]
[1731807646384,0.05191256,90268.0,90267.0,0.19763525]
[1731807646588,0.05191256,90268.0,90264.0,0.11078061]
[1731807646896,0.05191256,90267.0,90263.0,0.416168]
[1731807647092,0.0052,90275.0,90264.0,0.15372]
[1731807647283,0.055363,90272.0,90264.0,0.11078061]
[1731807647483,0.00886,90274.0,90271.0,0.3608]
[1731807647688,0.01343843,90273.0,90271.0,0.3608]
[1731807647899,0.01343843,90272.0,90271.0,0.416163]
[1731807648084,0.00886,90274.0,90272.0,0.11077938]
[1731807648581,0.00886,90274.0,90271.0,0.416163]
[1731807648785,0.00886,90274.0,90272.0,0.11077509]
[1731807648976,0.00886,90274.0,90272.0,0.16613709]
[1731807649179,0.00886,90274.0,90273.0,0.33232]
[1731807649899,0.00886,90274.0,90273.0,0.44309509]
[1731807650383,0.00886,90274.0,90273.0,0.44409509]
[1731807650578,0.00886,90274.0,90273.0,0.74409509]
[1731807650798,0.0052,90282.0,90273.0,0.77539509]
[1731807650997,0.0052,90287.0,90281.0,0.3608]
[1731807651182,0.0052,90292.0,90282.0,0.15376]
[1731807651697,0.0052,90292.0,90290.0,0.3608]
[1731807651996,0.00010431,90293.0,90290.0,0.3608]
[1731807652412,0.00886,90292.0,90291.0,0.49835259]
[1731807653084,0.0052,90300.0,90298.0,0.055347]
[1731807653286,0.0052,90308.0,90300.0,0.055345]
[1731807653699,0.0052,90308.0,90301.0,0.11074319]
[1731807654089,0.0052,90308.0,90302.0,0.055344]
[1731807654400,0.0052,90314.0,90307.0,0.3608]
[1731807654696,0.00885,90313.0,90312.0,0.055338]
[1731807654898,0.0149,90313.0,90312.0,0.055338]
[1731807655119,0.0149,90313.0,90312.0,0.387498]
[1731807655294,0.00885,90313.0,90312.0,0.49823383]
[1731807656381,0.00885,90313.0,90312.0,0.44289583]
[1731807656987,0.00885,90313.0,90312.0,0.11173583]
[1731807659187,0.00885,90313.0,90312.0,0.11073583]
[1731807659691,0.00885,90313.0,90308.0,0.15376]
[1731807660000,0.05534,90310.0,90309.0,0.11072664]
[1731807660513,0.055344,90302.0,90301.0,0.00010431]
[1731807661106,0.055344,90302.0,90301.0,0.11083463]
[1731807662792,0.055344,90302.0,90301.0,0.00010431]
[1731807663603,0.0311,90312.0,90302.0,0.055344]
[1731807664201,0.0311,90312.0,90303.0,0.11074013]
[1731807664404,0.0311,90312.0,90305.0,0.055342]
[1731807664798,0.0311,90312.0,90308.0,0.05534]
[1731807665000,0.0311,90312.0,90309.0,0.05534]
[1731807665197,0.00885,90313.0,90310.0,0.055339]
[1731807665398,0.00885,90313.0,90310.0,0.11073338]
[1731807665705,0.00885,90313.0,90312.0,0.416138]
[1731807665909,0.00885,90313.0,90312.0,0.895258]
[1731807666204,0.00885,90313.0,90312.0,0.416138]
[1731807666408,0.00885,90313.0,90306.0,0.19763525]
[1731807666597,0.00885,90313.0,90312.0,0.11072664]
[1731807666797,0.00885,90313.0,90304.0,0.3608]
[1731807667004,0.00606,90315.0,90310.0,0.055339]
[1731807667603,0.00606,90315.0,90311.0,0.11072664]
[1731807667805,0.00606,90315.0,90313.0,0.055337]
[1731807668001,0.060533,90320.0,90311.0,0.11072664]
[1731807668201,0.055333,90320.0,90309.0,0.05534]
[1731807668507,0.055335,90317.0,90309.0,0.05534]
[1731807668703,0.00885,90316.0,90309.0,0.05534]
[1731807669008,0.00885,90316.0,90310.0,0.11072296]
[1731807669816,0.00885,90316.0,90312.0,0.3608]
[1731807670024,0.00885,90316.0,90313.0,0.055338]
[1731807670202,0.00885,90316.0,90312.0,0.3608]
[1731807670413,0.00885,90316.0,90314.0,0.11072603]
[1731807670815,0.00885,90316.0,90314.0,0.055337]
[1731807671606,0.00885,90316.0,90315.0,0.11072357]
[1731807671812,0.00885,90316.0,90315.0,0.44288357]
[1731807672219,0.00612,90319.0,90318.0,0.055335]
[1731807672515,0.00612,90319.0,90318.0,0.563055]
[1731807672703,0.00612,90319.0,90318.0,0.895215]
[1731807672905,0.00612,90319.0,90318.0,1.30593796]
[1731807673115,0.00010572,90330.0,90329.0,0.055328]
[1731807673314,0.0324,90353.0,90329.0,0.3608]
[1731807673527,0.0324,90353.0,90345.0,0.3608]